bitfinex-derivatives/quotes_SOLF0:USTF0_20260311
["timestamp","ask_amount","ask_price","bid_price","bid_amount"]
[1773252304101,0.00024436,87.642,87.62,10.269]
[1773252305102,0.00024436,87.642,87.628,10.269]
[1773252305296,0.00024436,87.642,87.597,13.96130914]
[1773252306298,0.00024436,87.642,87.596,13.96130914]
[1773252306499,0.00024436,87.642,87.585,13.96130914]
[1773252307195,0.00024436,87.642,87.584,13.96130914]
[1773252307399,0.00024436,87.642,87.597,10.272]
[1773252307703,0.00024436,87.642,87.584,13.96130914]
[1773252308003,6.07927837,87.74,87.621,13.96130914]
[1773252308194,6.07927837,87.74,87.61,6.07927837]
[1773252308195,6.07927837,87.74,87.614,13.96130914]
[1773252308403,20.513,87.736,87.614,13.96130914]
[1773252308601,1.98476635,87.737,87.632,10.268]
[1773252309001,10.262,87.685,87.632,10.268]
[1773252309600,10.261,87.691,87.616,13.96130914]
[1773252309993,6.07927837,87.72,87.6,14.38]
[1773252309994,6.07927837,87.72,87.6,13.96130914]
[1773252310204,6.07927837,87.72,87.598,13.96130914]
[1773252310902,6.07927837,87.68,87.573,28.34130914]
[1773252311091,6.07927837,87.68,87.573,14.38]
[1773252311296,10.267,87.639,87.583,10.274]
[1773252312604,10.266,87.647,87.591,10.273]
[1773252314001,10.267,87.64,87.591,10.273]
[1773252314397,6.07927837,87.68,87.591,10.273]
[1773252314609,20.522,87.698,87.59,6.07927837]
[1773252314906,14.38,87.682,87.59,6.07927837]
[1773252315307,20.522,87.698,87.59,6.07927837]
[1773252315507,10.266,87.654,87.6,10.272]
[1773252315702,20.524,87.687,87.583,13.96130914]
[1773252316308,20.524,87.687,87.58,6.07927837]
[1773252316808,14.38,87.686,87.58,6.07927837]
[1773252317005,10.265,87.657,87.598,10.272]
[1773252317914,10.266,87.649,87.598,10.272]
[1773252318302,10.265,87.658,87.605,10.271]
[1773252318708,20.519,87.709,87.6,6.07927837]
[1773252318906,10.262,87.683,87.629,10.268]
[1773252320508,10.262,87.683,87.637,10.268]
[1773252320806,10.262,87.683,87.613,13.96130914]
[1773252321113,10.262,87.683,87.612,13.96130914]
[1773252321308,10.263,87.676,87.629,10.268]
[1773252321608,10.263,87.676,87.611,13.96130914]
[1773252322010,10.262,87.686,87.634,10.268]
[1773252322317,14.38,87.704,87.611,13.96130914]
[1773252322613,14.38,87.705,87.611,13.96130914]
[1773252323513,10.263,87.675,87.611,13.96130914]
[1773252324319,10.263,87.675,87.623,10.269]
[1773252327119,10.263,87.675,87.613,10.27]
[1773252327324,14.38,87.701,87.595,13.96130914]
[1773252327714,14.38,87.701,87.59,20.04058751]
[1773252328219,14.38,87.701,87.591,13.96130914]
[1773252328518,10.265,87.66,87.606,10.271]
[1773252330327,10.266,87.653,87.606,10.271]
[1773252330524,14.36,87.713,87.61,20.04058751]
[1773252331029,20.519,87.711,87.61,6.07927837]
[1773252331327,14.36,87.71,87.611,13.96130914]
[1773252331528,20.43927837,87.71,87.61,20.04058751]
[1773252331729,20.43927837,87.71,87.602,13.96130914]
[1773252332327,20.43927837,87.71,87.603,13.96130914]
[1773252333228,20.43927837,87.71,87.604,13.96130914]
[1773252333428,10.264,87.665,87.617,10.27]
[1773252334021,10.263,87.673,87.623,10.269]
[1773252334325,14.36,87.701,87.61,20.04058751]
[1773252334926,14.36,87.701,87.61,6.07927837]
[1773252335130,10.264,87.664,87.61,6.07927837]
[1773252335424,14.36,87.701,87.61,6.07927837]
[1773252335631,14.36,87.701,87.61,13.96130914]
[1773252336229,14.36,87.701,87.611,13.96130914]
[1773252336430,10.264,87.671,87.628,10.269]
[1773252336726,20.519,87.708,87.6,6.0714756]
[1773252336727,14.36,87.7,87.616,13.96130914]
[1773252336933,10.265,87.664,87.62,10.27]
[1773252337328,10.265,87.664,87.603,13.96130914]
[1773252337829,10.265,87.664,87.619,10.27]
[1773252342433,10.264,87.672,87.627,10.269]
[1773252342632,14.36,87.684,87.627,10.269]
[1773252344534,10.264,87.666,87.627,10.269]
[1773252344734,10.264,87.666,87.621,13.96130914]
[1773252345535,10.264,87.666,87.624,10.269]
[1773252345735,10.264,87.666,87.625,13.96130914]
[1773252345936,10.264,87.666,87.627,13.96130914]
[1773252346236,14.36,87.687,87.628,13.96130914]
[1773252347232,10.264,87.666,87.628,13.96130914]
[1773252347932,14.36,87.685,87.628,13.96130914]
[1773252348140,14.36,87.685,87.595,21.01446309]
[1773252348731,16.65594046,87.7,87.591,21.01446309]
[1773252348934,14.36,87.684,87.591,21.01446309]
[1773252349134,14.36,87.684,87.589,21.01446309]
[1773252349940,20.526,87.678,87.603,10.272]
[1773252350134,14.36,87.677,87.603,10.272]
[1773252350541,34.887,87.676,87.589,31.28746309]
[1773252350740,14.36,87.676,87.589,31.28746309]
[1773252350942,6.0714756,87.68,87.589,21.01446309]
[1773252351143,159.528,87.746,87.592,21.01446309]
[1773252351144,14.38,87.679,87.592,21.01446309]
[1773252351443,21.22743258,87.725,87.564,14.38]
[1773252351444,14.38,87.692,87.607,21.01446309]
[1773252351641,14.38,87.691,87.608,21.01446309]
[1773252351844,14.38,87.69,87.608,21.01446309]
[1773252352039,14.00028867,87.73,87.564,14.38]
[1773252352040,14.38,87.724,87.64,6.0714756]
[1773252352242,14.38,87.723,87.64,27.08593869]
[1773252352442,14.38,87.723,87.595,34.82126695]
[1773252352443,10.261,87.692,87.639,10.267]
[1773252352637,14.38,87.722,87.639,10.267]
[1773252352837,14.38,87.722,87.631,21.01446309]
[1773252353138,14.38,87.722,87.63,21.01446309]
[1773252353339,14.38,87.724,87.64,21.01446309]
[1773252353543,14.38,87.723,87.637,21.01446309]
[1773252354047,14.38,87.723,87.618,14.38]
[1773252354048,14.38,87.723,87.632,21.01446309]
[1773252354343,14.38,87.723,87.631,21.01446309]
[1773252354545,10.263,87.681,87.624,10.269]
[1773252354945,6.0714756,87.72,87.624,21.01446309]
[1773252355150,6.0714756,87.7,87.599,21.0577579]
[1773252355444,6.0714756,87.7,87.57,6.0714756]
[1773252355445,6.0714756,87.7,87.593,21.0577579]
[1773252355645,20.521,87.699,87.596,10.272]
[1773252355842,20.521,87.699,87.596,21.0577579]
[1773252356142,6.0714756,87.7,87.569,14.38]
[1773252356143,14.36,87.698,87.604,21.0577579]
[1773252356645,14.36,87.698,87.598,21.0577579]
[1773252357046,14.36,87.698,87.595,21.0577579]
[1773252357347,10.264,87.669,87.612,10.27]
[1773252357543,14.36,87.698,87.596,21.0577579]
[1773252357848,14.36,87.697,87.596,21.0577579]
[1773252358037,10.265,87.661,87.611,10.271]
[1773252358744,10.264,87.67,87.611,10.271]
[1773252359047,21.28662415,87.733,87.59,6.0714756]
[1773252359048,16.71478767,87.72,87.61,21.0577579]
[1773252359250,14.36,87.719,87.618,21.0577579]
[1773252359450,6.0714756,87.72,87.621,21.0577579]
[1773252359652,14.36,87.719,87.621,21.0577579]
[1773252360151,6.0714756,87.72,87.621,21.0577579]
[1773252360452,14.36,87.719,87.627,10.269]
[1773252360852,10.261,87.692,87.635,10.268]
[1773252361053,14.36,87.715,87.63,6.0714756]
[1773252361249,14.36,87.714,87.622,21.0577579]
[1773252361450,14.36,87.713,87.617,21.0577579]
[1773252361953,14.36,87.713,87.572,34.82126695]
[1773252361954,6.0714756,87.7,87.607,21.0577579]
[1773252362151,6.0714756,87.7,87.606,21.0577579]
[1773252362642,6.0714756,87.7,87.602,21.0577579]
[1773252362846,6.0714756,87.7,87.601,21.0577579]
[1773252363244,6.0714756,87.7,87.602,21.0577579]
[1773252363448,10.265,87.664,87.605,10.271]
[1773252364156,14.36,87.677,87.607,21.0577579]
[1773252364352,14.36,87.677,87.608,21.0577579]
[1773252364553,14.36,87.677,87.612,21.0577579]
[1773252365455,10.263,87.676,87.62,10.27]
[1773252366051,10.264,87.668,87.62,10.27]
[1773252366256,14.36,87.677,87.607,21.0577579]
[1773252366554,14.36,87.677,87.59,6.0714756]
[1773252366555,14.36,87.677,87.606,21.0577579]
[1773252366757,14.36,87.677,87.59,6.0714756]
[1773252366758,10.266,87.651,87.603,21.0577579]
[1773252366950,10.266,87.651,87.562,34.82126695]
[1773252366951,14.36,87.677,87.599,21.0577579]
[1773252367152,14.36,87.677,87.587,21.0577579]
[1773252367347,14.36,87.677,87.588,10.273]
[1773252369852,10.268,87.637,87.588,10.273]
[1773252370160,14.36,87.677,87.59,10.273]
[1773252370657,6.0714756,87.68,87.598,10.272]
[1773252371060,14.38,87.679,87.587,21.0577579]
[1773252371262,14.38,87.679,87.586,21.0577579]
[1773252371765,14.38,87.679,87.57,6.0714756]
[1773252371766,14.38,87.679,87.597,10.272]
[1773252371962,14.38,87.679,87.586,21.0577579]
[1773252372459,14.38,87.679,87.575,21.0577579]
[1773252372658,14.38,87.679,87.57,6.0714756]
[1773252372855,10.269,87.625,87.578,10.274]
[1773252373061,20.528,87.672,87.578,10.274]
[1773252373257,10.268,87.634,87.584,10.274]
[1773252373462,10.268,87.634,87.57,6.0714756]
[1773252374362,10.268,87.634,87.59,10.273]
[1773252375062,10.268,87.634,87.582,10.274]
[1773252375262,10.269,87.628,87.57,6.0714756]
[1773252375665,14.38,87.647,87.586,10.273]
[1773252376864,14.38,87.646,87.592,10.273]
[1773252377456,10.268,87.636,87.592,10.273]
[1773252377662,10.268,87.636,87.585,10.274]
[1773252377856,14.38,87.646,87.585,10.274]
[1773252378858,14.38,87.661,87.591,10.273]
[1773252379063,14.38,87.661,87.574,14.02444636]
[1773252379469,10.268,87.631,87.59,10.273]
[1773252380373,10.268,87.631,87.583,10.274]
[1773252382775,10.268,87.631,87.589,10.273]
[1773252383974,20.528,87.67,87.58,14.02444636]
[1773252384167,14.38,87.669,87.583,14.02444636]
[1773252384367,14.38,87.669,87.584,14.02444636]
[1773252384868,10.268,87.637,87.595,10.272]
[1773252385778,20.524,87.688,87.59,6.0714756]
[1773252385980,14.38,87.687,87.591,14.02444636]
[1773252386272,10.268,87.636,87.582,14.02444636]
[1773252386470,20.529,87.666,87.582,14.02444636]
[1773252386671,6.0714756,87.68,87.581,14.02444636]
[1773252386869,20.529,87.664,87.59,10.273]
[1773252388380,10.268,87.636,87.59,10.273]
[1773252389275,14.38,87.664,87.59,6.0714756]
[1773252389780,10.266,87.647,87.606,10.271]
[1773252390983,20.521,87.702,87.594,20.546]
[1773252391185,14.38,87.701,87.61,6.0714756]
[1773252391777,20.521,87.702,87.61,6.0714756]
[1773252391977,14.38,87.701,87.61,6.0714756]
[1773252392383,10.264,87.668,87.624,10.269]
[1773252395083,6.0714756,87.76,87.65,6.0714756]
[1773252395285,14.38,87.759,87.65,6.0714756]
[1773252395489,1.98426274,87.757,87.65,6.0714756]
[1773252395688,10.259,87.713,87.668,10.264]
[1773252397190,10.259,87.713,87.65,6.0714756]
[1773252397191,10.259,87.713,87.66,10.265]
[1773252397491,11.2850025,87.738,87.66,10.265]
[1773252397688,20.51,87.746,87.66,10.265]
[1773252398690,32.12418275,87.746,87.66,10.265]
[1773252399288,10.259,87.71,87.66,10.265]
[1773252399483,14.38,87.715,87.65,10.266]
[1773252399683,20.51,87.745,87.65,10.266]
[1773252399891,10.259,87.708,87.64,6.06640374]
[1773252401194,10.26,87.701,87.656,10.265]
[1773252401393,14.36,87.714,87.64,6.06640374]
[1773252401591,14.36,87.713,87.64,6.06640374]
[1773252401794,14.36,87.712,87.64,6.06640374]
[1773252402094,14.36,87.713,87.651,10.266]
[1773252402489,14.36,87.713,87.658,10.265]
[1773252404294,14.36,87.777,87.68,6.06640374]
[1773252404490,6.06640374,87.8,87.68,6.06640374]
[1773252404693,14.36,87.799,87.68,6.06640374]
[1773252404896,1.98341455,87.797,87.68,6.06640374]
[1773252405292,1.98341455,87.797,87.67,6.06640374]
[1773252405293,13.30158281,87.797,87.67,6.06640374]
[1773252405488,14.36,87.796,87.67,6.06640374]
[1773252405691,10.255,87.744,87.69,6.06640374]
[1773252406294,10.256,87.734,87.68,10.262]
[1773252406891,14.36,87.751,87.68,10.262]
[1773252407094,13.30158281,87.797,87.67,6.06640374]
[1773252407297,14.36,87.796,87.71,6.06640374]
[1773252407498,10.253,87.764,87.71,6.06640374]
[1773252407890,14.36,87.78,87.71,6.06640374]
[1773252408288,10.254,87.758,87.69,6.06640374]
[1773252408493,14.36,87.78,87.69,6.06640374]
[1773252408898,10.255,87.749,87.69,6.06640374]
[1773252410191,10.254,87.757,87.703,10.26]
[1773252410695,14.36,87.77,87.703,10.26]
[1773252411795,10.254,87.75,87.703,10.26]
[1773252412699,14.36,87.781,87.69,6.06640374]
[1773252413805,6.06640374,87.78,87.67,6.06640374]
[1773252413994,6.06640374,87.78,87.65,6.06640374]
[1773252414199,6.06640374,87.76,87.65,6.06640374]
[1773252414500,6.06640374,87.76,87.545,34.82126695]
[1773252414501,6.06640374,87.74,87.61,6.06640374]
[1773252414804,6.06640374,87.72,87.59,6.06640374]
[1773252415101,6.06640374,87.7,87.592,10.40341799]
[1773252415395,6.06640374,87.7,87.59,6.06640374]
[1773252415396,10.264,87.67,87.621,10.269]
[1773252416202,10.264,87.67,87.61,10.271]
[1773252416402,10.264,87.67,87.593,10.40341799]
[1773252416598,10.264,87.67,87.59,6.06640374]
[1773252416792,10.263,87.679,87.618,10.27]
[1773252421304,10.264,87.67,87.618,10.27]
[1773252421498,10.264,87.67,87.609,10.271]
[1773252421702,14.36,87.699,87.609,10.271]
[1773252422302,10.264,87.665,87.609,10.271]
[1773252423003,14.36,87.699,87.59,6.06640374]
[1773252423406,6.06640374,87.68,87.584,10.40341799]
[1773252423604,6.06640374,87.68,87.566,10.40341799]
[1773252423798,6.06640374,87.68,87.561,10.40341799]
[1773252424004,6.06640374,87.68,87.56,16.46982173]
[1773252424406,10.267,87.638,87.577,10.275]
[1773252424795,14.36,87.664,87.564,10.40341799]
[1773252424995,6.06640374,87.68,87.594,10.273]
[1773252424996,10.266,87.648,87.594,10.273]
[1773252425198,6.06640374,87.68,87.594,10.273]
[1773252425199,14.36,87.67,87.594,10.273]
[1773252425601,20.523,87.691,87.605,10.271]
[1773252425602,10.265,87.659,87.605,10.271]
[1773252425806,6.06640374,87.67,87.581,10.40341799]
[1773252426103,6.06640374,87.67,87.572,10.40341799]
[1773252426307,6.06640374,87.67,87.571,10.40341799]
[1773252426705,10.266,87.648,87.595,10.272]
[1773252426906,10.266,87.648,87.571,10.40341799]
[1773252427305,10.264,87.666,87.58,6.06640374]
[1773252427503,10.264,87.666,87.595,10.40341799]
[1773252427699,6.06640374,87.68,87.577,10.40341799]
[1773252427900,6.06640374,87.68,87.584,10.274]
[1773252428103,10.266,87.652,87.571,10.40341799]
[1773252428509,10.266,87.652,87.6,10.272]
[1773252431210,10.264,87.667,87.612,10.27]
[1773252431405,14.36,87.674,87.612,10.27]
[1773252431606,14.36,87.674,87.582,10.40341799]
[1773252432012,10.265,87.66,87.611,10.271]
[1773252432502,10.264,87.669,87.611,10.271]
[1773252432704,10.264,87.669,87.618,10.27]
[1773252433010,14.38,87.676,87.591,10.40341799]
[1773252433214,14.38,87.685,87.624,10.269]
[1773252433414,14.38,87.685,87.596,10.40341799]
[1773252433911,10.263,87.673,87.622,10.269]
[1773252434112,14.38,87.689,87.602,10.40341799]
[1773252434313,6.06640374,87.72,87.604,10.40341799]
[1773252434512,10.262,87.682,87.63,10.268]
[1773252434714,14.38,87.719,87.616,10.40341799]
[1773252434910,14.38,87.719,87.612,10.40341799]
[1773252435209,14.38,87.719,87.607,10.40341799]
[1773252436306,10.262,87.684,87.631,10.268]
[1773252436513,6.06640374,87.72,87.612,10.40341799]
[1773252436706,14.38,87.719,87.613,10.40341799]
[1773252436906,14.38,87.719,87.607,10.40341799]
[1773252437105,20.517,87.716,87.603,10.40341799]
[1773252437309,20.517,87.716,87.604,10.40341799]
[1773252438513,10.263,87.679,87.628,10.269]
[1773252440013,10.263,87.679,87.635,10.268]
[1773252440317,14.38,87.692,87.609,10.40341799]
[1773252440516,14.38,87.702,87.65,10.266]
[1773252441514,14.38,87.702,87.62,6.06640374]
[1773252441814,14.36,87.735,87.64,6.06640374]
[1773252442218,10.258,87.72,87.64,6.06640374]
[1773252442712,10.26,87.707,87.64,6.06640374]
[1773252443108,14.36,87.735,87.625,20.538]
[1773252443915,34.873,87.735,87.644,10.267]
[1773252444116,34.873,87.735,87.62,6.06640374]
[1773252444617,14.36,87.734,87.62,6.06640374]
[1773252444812,20.508,87.757,87.64,6.06640374]
[1773252445014,14.36,87.756,87.66,6.06640374]
[1773252446422,10.257,87.724,87.679,10.263]
[1773252447617,10.257,87.724,87.66,6.06640374]
[1773252447618,10.256,87.74,87.66,6.06640374]
[1773252448316,10.255,87.747,87.66,6.06640374]
[1773252448518,14.36,87.748,87.66,6.06640374]
[1773252450318,10.256,87.734,87.684,10.262]
[1773252450523,20.504,87.771,87.684,10.262]
[1773252450717,14.36,87.77,87.66,6.06640374]
[1773252450923,6.06640374,87.76,87.64,6.06640374]
[1773252451526,6.06640374,87.74,87.61,6.06640374]
[1773252452422,20.513,87.736,87.61,6.06640374]
[1773252452721,20.513,87.736,87.63,6.06640374]
[1773252453024,14.36,87.735,87.63,6.06640374]
[1773252454024,14.36,87.734,87.63,6.06640374]
[1773252455325,14.36,87.734,87.667,10.264]
[1773252455530,14.36,87.734,87.63,6.06640374]
[1773252456623,6.06640374,87.73,87.61,6.06640374]
[1773252456827,159.486,87.769,87.63,6.06640374]
[1773252456828,14.36,87.729,87.63,6.06640374]
[1773252457025,14.36,87.728,87.63,6.06640374]
[1773252457328,6.06640374,87.74,87.63,6.06640374]
[1773252457523,10.259,87.708,87.659,10.265]
[1773252458528,10.26,87.702,87.659,10.265]
[1773252458724,20.513,87.736,87.665,10.264]
[1773252459125,10.26,87.705,87.63,6.06640374]
[1773252459328,14.36,87.739,87.63,6.06640374]
[1773252459528,14.36,87.739,87.632,10.40341799]
[1773252459832,14.36,87.739,87.64,6.06613396]
[1773252460136,14.36,87.739,87.67,10.264]
[1773252460631,10.259,87.709,87.64,6.06613396]
[1773252461426,10.259,87.709,87.663,10.265]
[1773252462730,10.258,87.718,87.67,10.264]
[1773252464336,10.258,87.718,87.64,6.06613396]
[1773252464837,10.258,87.718,87.669,10.264]
[1773252465133,10.259,87.711,87.64,6.06613396]
[1773252465738,10.259,87.711,87.667,10.264]
[1773252466140,10.258,87.718,87.64,6.06613396]
[1773252466339,14.36,87.733,87.669,10.264]
[1773252467339,10.259,87.712,87.669,10.264]
[1773252468442,10.259,87.712,87.661,10.265]
[1773252468642,10.26,87.706,87.661,10.265]
[1773252468842,14.36,87.733,87.64,6.06613396]
[1773252469940,10.258,87.72,87.673,10.263]
[1773252470142,10.258,87.72,87.612,34.27]
[1773252470143,14.36,87.745,87.66,6.06613396]
[1773252470337,20.503,87.778,87.66,6.06613396]
[1773252470542,14.36,87.777,87.66,6.06613396]
[1773252470848,10.255,87.748,87.698,10.26]
[1773252471045,14.36,87.776,87.66,6.06613396]
[1773252471541,10.255,87.742,87.696,10.261]
[1773252472643,14.36,87.761,87.663,10.40341799]
[1773252473347,14.36,87.761,87.664,10.40341799]
[1773252473646,10.255,87.747,87.697,10.261]
[1773252473942,14.36,87.761,87.664,10.40341799]
[1773252474143,14.36,87.76,87.67,6.06613396]
[1773252474650,1.98337499,87.807,87.67,6.06613396]
[1773252474651,10.253,87.763,87.673,30.97169187]
[1773252474850,10.253,87.763,87.674,10.44469187]
[1773252475052,10.254,87.756,87.707,10.259]
[1773252477345,10.253,87.764,87.715,10.258]
[1773252477748,10.253,87.764,87.69,6.06613396]
[1773252478651,6.06613396,87.8,87.69,6.06613396]
[1773252478652,10.252,87.771,87.718,10.258]
[1773252478954,10.252,87.775,87.732,10.256]
[1773252480355,10.252,87.775,87.725,10.257]
[1773252480858,14.36,87.776,87.675,14.02444636]
[1773252480859,14.36,87.776,87.675,10.44469187]
[1773252481153,17.20887347,87.775,87.662,10.44469187]
[1773252481354,6.06613396,87.76,87.658,10.44469187]
[1773252481559,2.42633586,87.74,87.674,10.263]
[1773252481859,2.42633586,87.72,87.65,2.42633586]
[1773252482157,2.8491019,87.758,87.65,2.42633586]
[1773252482158,2.42633586,87.71,87.65,2.42633586]
[1773252482755,2.42633586,87.69,87.63,2.42633586]
[1773252482955,14.36,87.711,87.62,2.42633586]
[1773252482956,2.42633586,87.68,87.62,2.42633586]
[1773252483356,2.42633586,87.68,87.635,10.268]
[1773252483554,10.262,87.688,87.635,10.268]
[1773252483859,10.262,87.688,87.613,10.44469187]
[1773252483860,10.263,87.681,87.627,10.269]
[1773252484460,6.07210579,87.71,87.615,10.44469187]
[1773252484461,14.36,87.694,87.615,10.44469187]
[1773252484754,14.36,87.699,87.62,10.44469187]
[1773252484960,10.262,87.684,87.631,10.268]
[1773252485857,2.8491019,87.729,87.64,6.07210579]
[1773252486059,14.36,87.728,87.64,6.07210579]
[1773252486456,2.8491019,87.727,87.64,6.07210579]
[1773252486656,10.26,87.701,87.628,10.44469187]
[1773252486857,2.8491019,87.725,87.62,10.44469187]
[1773252487062,6.07210579,87.71,87.616,10.44469187]
[1773252487254,10.262,87.684,87.635,10.268]
[1773252488864,10.263,87.676,87.626,10.269]
[1773252489057,10.263,87.676,87.609,10.44469187]
[1773252489261,10.263,87.676,87.608,10.44469187]
[1773252489758,10.264,87.668,87.615,10.27]
[1773252489962,20.514,87.73,87.589,10.44469187]
[1773252489963,14.36,87.674,87.589,10.44469187]
[1773252490257,14.36,87.673,87.582,10.44469187]
[1773252490558,10.265,87.658,87.582,10.44469187]
[1773252490765,14.36,87.673,87.587,10.44469187]
[1773252490956,14.36,87.673,87.58,6.07210579]
[1773252490957,14.36,87.673,87.586,10.44469187]
[1773252491162,14.36,87.673,87.584,10.44469187]
[1773252492266,14.36,87.673,87.58,6.07210579]
[1773252492267,14.36,87.673,87.582,10.44469187]
[1773252492563,10.264,87.667,87.602,10.272]
[1773252492759,6.07210579,87.67,87.569,10.44469187]
[1773252492964,14.36,87.669,87.561,10.44469187]
[1773252493159,10.268,87.632,87.579,10.274]
[1773252493761,10.267,87.641,87.579,10.274]
[1773252496462,10.268,87.633,87.579,10.274]
[1773252496661,14.36,87.647,87.566,10.276]
[1773252496958,14.36,87.647,87.535,10.44469187]
[1773252497157,10.272,87.603,87.548,10.278]
[1773252497358,14.36,87.621,87.52,10.44469187]
[1773252497566,14.36,87.62,87.514,10.44469187]
[1773252497767,14.36,87.62,87.539,10.279]
[1773252497768,10.273,87.595,87.539,10.279]
[1773252497966,14.36,87.62,87.51,6.07210579]
[1773252497967,14.36,87.62,87.511,10.44469187]
[1773252498161,14.36,87.62,87.51,6.07210579]
[1773252498662,14.36,87.62,87.529,10.28]
[1773252498862,14.36,87.62,87.51,6.07210579]
[1773252499258,10.272,87.598,87.538,10.279]
[1773252500864,10.272,87.598,87.499,10.44469187]
[1773252500865,14.38,87.631,87.53,6.07210579]
[1773252501461,10.272,87.602,87.548,10.278]
[1773252501967,10.27,87.615,87.557,10.277]
[1773252502171,14.38,87.631,87.557,10.277]
[1773252503370,10.271,87.607,87.548,10.278]
[1773252504073,14.38,87.631,87.548,10.278]
[1773252504269,6.07210579,87.62,87.51,6.07210579]
[1773252504673,14.38,87.619,87.51,6.07210579]
[1773252504969,14.38,87.619,87.49,6.07210579]
[1773252504970,6.07210579,87.6,87.49,6.07210579]
[1773252505168,6.07210579,87.58,87.47,6.07210579]
[1773252505373,14.38,87.579,87.47,6.07210579]
[1773252505974,10.278,87.547,87.487,10.285]
[1773252506471,10.278,87.547,87.47,6.07210579]
[1773252507376,10.278,87.547,87.495,10.284]
[1773252509066,14.38,87.579,87.486,10.285]
[1773252509468,20.55,87.576,87.47,6.07210579]
[1773252509677,6.07210579,87.56,87.478,10.286]
[1773252510769,6.07210579,87.56,87.469,10.287]
[1773252510972,14.38,87.559,87.469,10.287]
[1773252511369,6.07210579,87.54,87.43,6.07210579]
[1773252512472,6.07210579,87.54,87.446,10.29]
[1773252512780,6.07210579,87.52,87.41,6.07210579]
[1773252513076,10.285,87.486,87.431,10.292]
[1773252514477,10.285,87.486,87.358,10.44469187]
[1773252514478,14.38,87.485,87.39,6.07210579]
[1773252514678,6.07210579,87.5,87.37,6.07210579]
[1773252514679,14.38,87.484,87.37,6.07210579]
[1773252514874,14.38,87.484,87.401,10.295]
[1773252515076,14.38,87.484,87.37,6.07210579]
[1773252515579,10.288,87.464,87.408,10.294]
[1773252516377,10.288,87.464,87.37,6.07210579]
[1773252516874,14.38,87.483,87.409,10.294]
[1773252517074,6.07210579,87.5,87.409,10.294]
[1773252517282,6.07210579,87.52,87.41,6.07210579]
[1773252517579,14.38,87.519,87.41,6.07210579]
[1773252518077,10.284,87.495,87.436,10.291]
[1773252518278,14.4,87.547,87.44,6.07210579]
[1773252518575,10.28,87.536,87.478,10.286]
[1773252518976,14.4,87.555,87.46,6.07210579]
[1773252519274,14.4,87.554,87.46,6.07210579]
[1773252519676,10.277,87.553,87.493,10.284]
[1773252520072,14.4,87.563,87.493,10.284]
[1773252520275,10.278,87.545,87.493,10.284]
[1773252520581,14.4,87.578,87.501,10.283]
[1773252520780,14.4,87.578,87.48,6.07210579]
[1773252520781,10.276,87.564,87.48,6.07210579]
[1773252521581,10.276,87.564,87.48,6.08862743]
[1773252522081,10.277,87.556,87.497,10.284]
[1773252522284,14.4,87.578,87.48,6.08862743]
[1773252522480,6.08862743,87.57,87.46,6.08862743]
[1773252522776,10.281,87.526,87.46,6.08862743]
[1773252523182,6.08862743,87.57,87.46,6.08862743]
[1773252523883,6.08862743,87.57,87.482,10.286]